bitfinex/quotes_ETHUSD_20251011
["timestamp","ask_amount","ask_price","bid_price","bid_amount"]
[1760181913744,2.73326749,3824.0,3823.3,0.02615541]
[1760181913745,3.42833431,3824.0,3823.3,0.02615541]
[1760181913942,0.22419213,3824.0,3823.5,2.61537712]
[1760181914156,0.22419213,3824.0,3823.6,0.02615336]
[1760181914544,0.22419213,3824.0,3823.7,2.61524629]
[1760181914767,0.22419213,3824.0,3823.6,2.64147182]
[1760181914966,0.22419213,3824.0,3823.6,0.02615336]
[1760181915748,0.22419213,3824.0,3823.6,2.61533633]
[1760181915960,0.22419213,3824.0,3823.7,0.02615267]
[1760181916351,0.22419213,3824.0,3823.7,2.6414191]
[1760181916957,0.22419213,3824.0,3823.7,0.02615267]
[1760181918275,0.22419213,3824.0,3823.6,2.64147018]
[1760181918571,0.22419213,3824.0,3823.8,14.5]
[1760181919503,0.22419213,3824.0,3823.8,17.11517489]
[1760181919778,0.22419213,3824.0,3823.9,0.02615131]
[1760181921005,0.22419213,3824.0,3823.9,2.64128245]
[1760181921494,0.22419213,3824.0,3823.9,3.8449178]
[1760181921695,0.001,3824.1,3824.0,3.24866276]
[1760181921880,0.001,3824.1,3824.0,5.16866276]
[1760181922087,0.001,3824.1,3824.0,19.66866276]
[1760181922391,0.001,3824.1,3824.0,19.79906276]
[1760181924256,0.001,3824.1,3824.0,19.16546276]
[1760181924409,0.001,3824.1,3824.0,19.42352215]
[1760181924705,0.001,3824.1,3824.0,17.24546276]
[1760181925671,0.001,3824.1,3824.0,14.6304]
[1760181927000,0.001,3824.1,3824.0,17.24546276]
[1760181927379,0.001,3824.1,3824.0,14.6304]
[1760181927998,0.001,3824.1,3824.0,17.24546276]
[1760181929597,0.001,3824.1,3824.0,14.6304]
[1760181929793,0.001,3824.1,3824.0,17.24546276]
[1760181930398,0.001,3824.1,3824.0,19.23152736]
[1760181931076,0.001,3824.1,3824.0,21.78512736]
[1760181931900,0.001,3824.1,3824.0,19.86512736]
[1760181932094,0.001,3824.1,3824.0,21.15152736]
[1760181933404,0.001,3824.1,3824.0,21.78512736]
[1760181936108,0.001,3824.1,3824.0,21.15152736]
[1760181940010,0.001,3824.1,3824.0,21.78512736]
[1760181943205,0.001,3824.1,3824.0,24.89021122]
[1760181943386,0.001,3824.1,3824.0,22.13038922]
[1760181943592,0.001,3824.1,3824.0,21.78512736]
[1760181944704,0.001,3824.1,3824.0,33.46184036]
[1760181944894,0.001,3824.1,3824.0,33.80710222]
[1760181945093,0.353,3824.9,3824.8,5.16811579]
[1760181945297,0.353,3824.9,3824.8,5.81532737]
[1760181945595,1.92,3827.1,3826.3,2.61344991]
[1760181945793,1.92,3827.1,3825.6,2.61396289]
[1760181945794,1.92,3827.1,3826.5,14.5]
[1760181946098,1.92,3827.1,3826.7,0.1304]
[1760181946305,2.61288666,3827.2,3826.7,0.1304]
[1760181946306,1.92,3827.2,3826.7,0.1304]
[1760181946509,0.20504,3827.1,3826.7,2.74360993]
[1760181946712,2.61302174,3827.0,3826.7,0.1304]
[1760181946910,0.1304,3827.4,3826.7,0.1304]
[1760181947219,1.92,3827.3,3826.7,0.1304]
[1760181947423,0.1304,3827.4,3826.8,2.61314018]
[1760181947716,0.353,3827.5,3826.8,0.02613149]
[1760181947916,0.64955272,3827.5,3827.3,0.1304]
[1760181948127,0.353,3827.5,3827.3,0.1304]
[1760181948308,0.353,3827.5,3827.4,14.5]
[1760181949219,0.353,3827.5,3827.4,17.11273971]
[1760181951713,0.353,3827.5,3827.4,14.5]
[1760181952901,0.353,3827.5,3827.4,17.11273971]
[1760181953222,0.353,3827.5,3827.4,19.45761368]
[1760181953421,0.353,3827.5,3827.4,18.82401368]
[1760181954706,0.353,3827.5,3827.4,19.45761368]
[1760181955910,0.353,3827.5,3827.4,18.82401368]
[1760181957624,0.353,3827.5,3827.4,19.45761368]
[1760181959114,0.353,3827.5,3827.4,19.58801368]
[1760181959433,0.353,3827.5,3827.4,21.50801368]
[1760181961409,0.353,3827.5,3827.4,21.72287554]
[1760181961717,0.353,3827.5,3827.4,21.37761368]
[1760181963726,0.353,3827.5,3827.4,18.82401368]
[1760181964039,0.353,3827.5,3827.4,20.74401368]
[1760181965416,0.353,3827.5,3827.4,19.03273971]
[1760181966208,0.353,3827.5,3827.4,14.5]
[1760181967040,0.354,3827.5,3827.4,14.5]
[1760181967407,0.354,3827.5,3827.4,17.11273971]
[1760181968611,0.354,3827.5,3827.4,17.74633971]
[1760181968814,0.354,3827.5,3827.4,21.70226101]
[1760181971484,0.354,3827.5,3827.4,21.83266101]
[1760181973677,0.354,3827.5,3827.4,19.14866101]
[1760181974101,0.354,3827.5,3827.4,19.78226101]
[1760181974102,0.001,3827.5,3827.4,19.78226101]
[1760181974276,0.001,3827.5,3827.4,21.70226101]
[1760181974851,0.001,3827.5,3827.4,21.06866101]
[1760181975094,0.001,3827.5,3827.4,19.14866101]
[1760181976904,0.001,3827.5,3827.4,16.5359213]
[1760181977112,0.001,3827.5,3827.4,19.14866101]
[1760181979884,0.001,3827.5,3827.4,16.5359213]
[1760181980100,0.001,3827.5,3827.4,17.11273971]
[1760181981696,0.001,3827.5,3827.4,14.5]
[1760181982112,0.001,3827.5,3827.4,17.11273971]
[1760181982418,0.001,3827.5,3827.4,14.5]
[1760181983592,0.001,3827.5,3827.4,17.11273971]
[1760181983796,0.001,3827.5,3827.4,17.24313971]
[1760181984922,0.001,3827.5,3827.4,17.84450594]
[1760181985793,0.001,3827.5,3827.4,14.6304]
[1760181985997,0.001,3827.5,3827.4,17.24313971]
[1760181986411,0.001,3827.5,3827.4,14.6304]
[1760181986931,0.001,3827.5,3827.4,17.24313971]
[1760181989922,0.001,3827.5,3827.4,14.6304]
[1760181991624,0.001,3827.5,3827.4,18.70617971]
[1760182002114,0.001,3827.5,3827.4,16.09344]
[1760182002314,0.001,3827.5,3827.4,14.6304]
[1760182003047,0.001,3827.5,3827.4,17.24313971]
[1760182003438,0.001,3827.5,3827.4,14.6304]
[1760182006512,0.001,3827.5,3827.4,17.24313971]
[1760182006714,0.4512,3830.9,3827.7,0.6336]
[1760182006957,0.4512,3830.9,3829.5,2.61130255]
[1760182007158,2.61042079,3830.8,3829.8,2.61109343]
[1760182007464,2.61042079,3830.8,3829.9,17.35565343]
[1760182007465,1.92,3830.7,3829.9,17.35565343]
[1760182007750,0.75919328,3830.7,3830.1,2.61084342]
[1760182007950,0.4512,3830.9,3830.2,2.855469]
[1760182008173,2.61014326,3831.3,3830.3,0.24464165]
[1760182008174,1.92,3831.3,3830.3,0.24464165]
[1760182008361,0.4309,3831.2,3829.3,0.6336]
[1760182008561,0.4309,3831.2,3830.4,2.61067186]
[1760182008728,0.4309,3831.2,3830.8,14.5]
[1760182008931,0.4309,3831.1,3830.8,14.5]
[1760182009464,2.96293319,3831.6,3830.3,2.61070261]
[1760182009465,2.60790194,3834.5,3830.9,0.26999323]
[1760182009651,0.2206,3833.9,3831.4,0.6336]
[1760182009849,0.4309,3833.8,3832.3,14.5]
[1760182010039,2.60883583,3833.2,3832.4,0.24388971]
[1760182010244,0.26088358,3833.1,3832.2,2.60939912]
[1760182010443,0.26088358,3833.1,3831.4,2.610012]
[1760182010444,0.2206,3833.9,3832.5,2.60923865]
[1760182010637,0.2206,3833.9,3832.6,2.63522884]
[1760182010957,1.92,3833.8,3832.8,2.60905507]
[1760182011156,0.4309,3834.0,3832.0,2.6095941]
[1760182011359,3.25941999,3834.5,3832.3,0.6336]
[1760182011559,0.792142,3834.4,3832.2,2.60944616]
[1760182011761,1.92,3833.6,3832.9,14.5]
[1760182011961,0.2206,3834.5,3832.9,14.5]
[1760182012135,2.60793057,3834.5,3832.9,14.5]
[1760182012457,2.60739053,3835.3,3832.2,0.6336]
[1760182012458,2.60695085,3835.9,3833.0,0.02608922]
[1760182012659,0.4309,3836.3,3834.5,0.6336]
[1760182012862,0.4309,3836.3,3834.8,2.60769792]
[1760182013032,0.4309,3836.3,3834.9,0.02607629]
[1760182013033,2.60688602,3836.0,3834.9,0.02607629]
[1760182013232,0.2206,3836.5,3834.9,0.02607629]
[1760182013233,0.2606886,3835.9,3834.9,0.02607629]
[1760182013455,0.2206,3836.5,3834.9,0.02607629]
[1760182013667,2.6067213,3836.3,3834.9,0.02607629]
[1760182013859,0.2206,3836.5,3834.9,0.02607629]
[1760182014060,0.353,3837.5,3835.1,0.6336]
[1760182014061,2.60633861,3836.8,3835.1,0.6336]
[1760182014259,0.4309,3837.0,3835.1,0.6336]
[1760182014260,3.03712613,3837.0,3835.2,0.02607425]
[1760182014483,3.03712613,3837.0,3835.9,14.5]
[1760182014484,0.32577261,3836.9,3835.9,14.5]
[1760182014685,2.60648996,3836.6,3835.9,14.5]
[1760182014855,2.60668004,3836.3,3835.9,14.5]
[1760182015261,2.60666987,3836.4,3835.9,14.5]
[1760182015461,2.60620276,3837.0,3835.9,14.5]
[1760182015751,0.4309,3836.9,3835.9,14.5]
[1760182016084,2.60688216,3836.0,3835.9,14.5]
[1760182016597,2.6067472,3836.2,3835.9,14.5]
[1760182016885,2.60682515,3836.1,3835.9,14.6296]
[1760182017057,2.60688216,3836.0,3835.9,14.6296]
[1760182017691,2.60688216,3836.0,3835.9,14.5]
[1760182017885,3.18429831,3836.0,3835.9,14.5]
[1760182018257,3.61519831,3836.0,3835.9,14.5]
[1760182018586,3.61519831,3836.0,3835.5,0.1296]
[1760182018587,2.60715403,3835.6,3835.5,0.1296]
[1760182018769,2.60708605,3835.7,3833.5,2.60851531]
[1760182018970,2.60742594,3835.2,3835.1,0.1296]
[1760182019287,5.0489011,3835.2,3835.1,14.5]
[1760182019802,5.4798011,3835.2,3835.1,14.5]
[1760182020169,5.4798011,3835.2,3831.6,2.60987576]
[1760182020170,2.60762992,3834.9,3831.6,2.60987576]
[1760182020488,0.1296,3835.0,3834.4,0.1296]
[1760182020719,0.25710752,3834.9,3834.5,14.5]
[1760182021000,2.60729457,3835.4,3835.3,0.1296]
[1760182021299,0.4309,3836.1,3834.9,0.6336]
[1760182021300,2.60703031,3835.8,3834.9,0.6336]
[1760182021500,2.60683469,3836.1,3834.9,3.2412184]
[1760182021501,2.60687297,3836.1,3834.9,3.2412184]
[1760182021700,0.52135967,3836.0,3835.3,14.5]
[1760182021872,0.4309,3836.9,3835.4,0.02607289]
[1760182022059,2.3509,3836.9,3835.4,0.02607289]
[1760182022258,1.92,3836.2,3835.4,0.02607289]
[1760182022480,0.001,3836.0,3835.3,0.6336]
[1760182022658,0.001,3836.0,3835.3,2.60735435]
[1760182023086,0.001,3836.0,3835.9,14.5]
[1760182025465,2.86865787,3836.0,3835.9,14.5]
[1760182026110,4.78865787,3836.0,3835.9,14.5]
[1760182027393,2.18177571,3836.0,3835.9,14.5]
[1760182027604,0.001,3836.0,3835.9,14.5]
[1760182028104,0.001,3836.0,3835.9,15.1336]
[1760182028604,0.001,3836.0,3835.9,14.5]
[1760182029312,4.52788216,3836.0,3835.9,14.5]
[1760182029794,1.921,3836.0,3835.9,14.5]
[1760182029974,2.1131,3836.0,3835.9,14.5]
[1760182030375,4.71998216,3836.0,3835.9,14.5]
[1760182032709,1.921,3836.0,3835.9,14.6296]
[1760182032910,4.52788216,3836.0,3835.9,14.6296]
[1760182033202,1.921,3836.0,3835.9,14.6296]
[1760182033406,4.52788216,3836.0,3835.9,14.5]
[1760182033579,4.52788216,3836.0,3835.9,14.6296]
[1760182033780,5.67224543,3836.0,3835.9,14.6296]
[1760182034017,5.24134543,3836.0,3835.9,14.6296]
[1760182034517,2.63446327,3836.0,3835.9,14.6296]
[1760182034726,4.52788216,3836.0,3835.9,14.6296]
[1760182034892,4.95878216,3836.0,3835.9,14.6296]
[1760182035215,4.95878216,3836.0,3835.9,14.5]
[1760182035388,4.95878216,3836.0,3833.9,2.60830744]
[1760182035389,2.60750638,3835.1,3833.9,2.60830744]
[1760182035901,4.52750638,3835.1,3835.0,14.6296]
[1760182036106,5.67188762,3835.1,3835.0,14.6296]
[1760182036282,5.67188762,3835.1,3835.0,14.5]
[1760182036481,5.24098762,3835.1,3835.0,14.5]
[1760182036880,5.67188762,3835.1,3835.0,14.5]
[1760182037184,5.24098762,3835.1,3835.0,14.5]
[1760182037391,5.67198762,3835.1,3835.0,14.5]
[1760182037605,5.24098762,3835.1,3835.0,14.5]
[1760182037805,4.52750638,3835.1,3835.0,14.5]
[1760182038105,1.92,3835.1,3835.0,14.5]
[1760182038313,1.92,3835.1,3835.0,14.6296]
[1760182038895,1.92,3835.1,3833.3,2.60871252]
[1760182038896,0.6336,3834.8,3828.9,2.61171471]
[1760182039098,0.6336,3834.6,3829.4,0.1299]
[1760182039408,1.92,3831.8,3831.4,14.5]
[1760182039712,2.60953524,3832.1,3831.4,14.5]
[1760182039917,4.52994388,3831.5,3831.4,14.5]
[1760182040307,4.96094388,3831.5,3831.4,14.5]
[1760182040507,4.52994388,3831.5,3831.4,14.5]
[1760182043005,1.92,3831.5,3831.4,14.5]
[1760182043210,4.52994388,3831.5,3831.4,14.5]
[1760182043611,1.92,3831.4,3830.2,0.1299]
[1760182043929,2.61016928,3831.2,3830.2,0.1299]
[1760182044129,2.61016928,3831.2,3830.4,14.5]
[1760182044327,3.754964,3831.5,3830.5,0.02610625]
[1760182044328,2.61022149,3831.1,3830.5,0.02610625]
[1760182044552,2.61030418,3831.0,3830.4,14.5]
[1760182044828,1.92,3831.4,3830.5,0.02610625]
[1760182045036,2.61009084,3831.3,3830.5,0.02610625]
[1760182045615,2.61016876,3831.2,3830.5,0.02610625]
[1760182045812,0.32726352,3832.0,3830.5,0.7635]
[1760182046011,2.60996419,3831.5,3830.5,0.7635]
[1760182046424,2.60996419,3831.5,3830.6,14.5]
[1760182047033,1.92,3831.9,3830.6,2.61054264]
[1760182047207,2.60983305,3831.7,3830.7,0.15600488]
[1760182047404,2.60983305,3831.7,3831.1,14.5]
[1760182047710,0.431,3832.3,3831.1,14.5]
[1760182047711,1.92,3832.0,3831.1,14.5]
[1760182047913,2.60993242,3831.6,3831.1,14.5]
[1760182048318,2.60974186,3831.8,3831.1,14.5]
[1760182048319,2.60995011,3831.5,3831.1,14.5]
[1760182048525,2.60994619,3831.5,3831.1,14.5]
[1760182048750,2.60986508,3831.7,3831.1,14.5]
[1760182048921,2.60986508,3831.7,3831.3,0.1304]
[1760182049117,2.60991111,3831.6,3831.3,0.1304]
[1760182049444,2.60994969,3831.5,3831.3,0.1304]
[1760182050134,2.60988442,3831.6,3831.3,0.1304]
[1760182050512,1.92,3831.7,3831.3,0.1304]
[1760182050735,2.60982639,3831.7,3831.3,0.1304]
[1760182050942,0.192,3831.9,3831.2,0.02610148]
[1760182051110,4.52982011,3831.7,3831.6,0.1304]
[1760182051518,2.60997294,3831.5,3831.1,14.5]
[1760182051716,2.60997294,3831.5,3831.4,0.1304]
[1760182051917,2.61014825,3831.2,3831.1,14.5]
[1760182052131,4.53014825,3831.2,3831.1,14.5]
[1760182052422,5.51820603,3831.2,3831.1,14.5]
[1760182053937,4.53014825,3831.2,3831.1,14.5]
[1760182054347,4.96114825,3831.2,3831.1,14.5]
[1760182054536,4.53014825,3831.2,3831.1,14.5]
[1760182055144,4.53035265,3830.9,3830.8,0.1304]
[1760182055614,5.09175265,3830.9,3830.8,14.5]
[1760182055819,5.86194988,3830.9,3830.8,14.5]
[1760182057149,5.86194988,3830.9,3830.2,0.1304]
[1760182057150,2.61076155,3830.3,3830.2,0.1304]
[1760182057331,2.61076155,3830.3,3829.4,0.1299]
[1760182057332,1.92,3830.3,3830.0,0.1304]
[1760182057643,4.53077922,3830.3,3830.2,14.5]
[1760182057853,5.68896039,3830.3,3830.2,14.5]
[1760182060625,5.25796039,3830.3,3830.2,14.5]
[1760182060825,5.73286039,3830.3,3830.2,14.5]
[1760182062123,2.61100077,3830.0,3829.8,0.1304]
[1760182062332,1.92,3830.0,3829.8,0.1304]
[1760182062647,4.53083636,3830.2,3829.9,14.5]
[1760182062818,1.92,3830.2,3830.0,0.1304]
[1760182063430,1.92,3830.7,3830.1,14.6304]
[1760182063630,1.92,3830.4,3830.1,14.6304]
[1760182063828,2.61073208,3830.4,3830.1,14.6304]
[1760182064146,2.18107321,3830.4,3830.1,14.6304]
[1760182064544,1.92,3830.2,3830.1,14.6304]
[1760182064860,1.92,3830.3,3830.1,14.6304]
[1760182065360,2.61078232,3830.3,3830.1,14.6304]
[1760182065571,0.26107321,3830.4,3830.1,14.6304]
[1760182065871,1.92,3830.2,3830.1,14.6304]
[1760182066071,2.61082972,3830.2,3830.1,14.6304]
[1760182066566,4.53082972,3830.2,3830.1,14.6304]
[1760182066860,4.53082972,3830.2,3830.1,14.5]
[1760182067665,2.3745,3830.2,3830.1,14.5]
[1760182067875,1.92,3830.2,3830.1,14.5]
[1760182068166,1.92,3830.2,3830.1,14.6304]
[1760182068336,4.53082972,3830.2,3830.1,14.6304]
[1760182069866,5.69948281,3830.2,3830.1,14.5]
[1760182070068,4.98532972,3830.2,3830.1,14.5]
[1760182071772,1.92,3830.2,3830.1,14.5]
[1760182072085,1.92,3830.2,3830.1,14.6304]
[1760182072372,2.61055143,3830.7,3830.1,14.6304]
[1760182072582,2.61057507,3830.6,3830.2,0.02610829]
[1760182072782,1.92,3830.5,3830.4,0.1304]
[1760182073672,2.61062524,3830.5,3830.4,0.1304]
[1760182075688,3.77923865,3830.5,3830.4,0.1304]
[1760182075878,2.61082972,3830.2,3830.1,14.5]
[1760182076180,2.61076296,3830.3,3830.1,14.5]
[1760182076377,2.61076296,3830.3,3830.1,14.6304]
[1760182076574,1.92,3830.4,3830.1,14.6304]
[1760182076770,2.61076771,3830.3,3830.1,14.6304]
[1760182076984,1.92,3830.4,3830.1,14.6304]
[1760182077388,2.6107,3830.4,3830.1,14.6304]
[1760182077570,2.6107,3830.4,3830.1,14.5]
[1760182077571,2.61070155,3830.4,3830.1,14.5]
[1760182077765,4.53070155,3830.4,3830.3,0.1304]
[1760182078995,1.92,3830.4,3830.3,0.1304]
[1760182079669,4.5306934,3830.4,3830.3,0.1304]
[1760182079866,4.5316934,3830.4,3830.3,0.1304]
[1760182080220,1.921,3830.4,3830.3,0.1304]
[1760182080507,1.921,3830.4,3830.3,1.72354]
[1760182080508,0.001,3830.4,3830.3,1.72354]
[1760182080672,0.001,3830.4,3830.3,0.2603]
[1760182080869,0.001,3830.4,3830.3,14.6304]
[1760182081403,0.001,3830.4,3830.3,14.7603]
[1760182082590,0.001,3830.4,3830.3,14.6304]
[1760182083101,2.6116934,3830.4,3830.3,14.6304]
[1760182083294,2.6116934,3830.4,3830.3,14.5]
[1760182083295,0.001,3830.4,3830.3,14.5]
[1760182086304,0.001,3830.4,3830.3,14.6299]
[1760182086474,0.001,3830.4,3830.3,16.09309]
[1760182087185,0.001,3830.4,3830.3,14.6299]
[1760182087391,0.001,3830.4,3830.3,14.5]
[1760182090298,0.001,3830.4,3830.3,14.6299]
[1760182090608,0.001,3830.4,3830.3,14.5]
[1760182091882,2.6116934,3830.4,3830.3,14.5]
[1760182092385,2.6116934,3830.4,3829.2,2.61150893]
[1760182092386,0.5676768,3830.3,3827.9,0.002]
[1760182092577,0.6336,3829.9,3827.9,0.002]
[1760182092783,1.92,3828.3,3828.0,14.5]
[1760182093005,4.5321276,3828.3,3828.0,14.5]
[1760182093178,1.92,3828.5,3828.2,0.1304]
[1760182093379,1.92,3828.3,3828.2,0.1304]
[1760182093781,2.61205761,3828.4,3828.2,0.1304]
[1760182094021,0.4545,3828.8,3828.2,0.1304]
[1760182094022,1.92,3828.7,3828.2,0.1304]
[1760182094325,1.92,3828.7,3828.5,0.1304]
[1760182094679,1.92,3828.7,3828.1,0.02612261]
[1760182094894,2.61172699,3828.9,3828.1,0.02612261]
[1760182095090,2.6117916,3828.8,3828.1,0.02612261]
[1760182095292,1.92,3828.7,3828.1,0.02612261]
[1760182095581,1.92,3828.5,3828.1,0.02612261]
[1760182095794,1.92,3828.6,3828.1,0.02612261]
[1760182097321,2.48778139,3828.9,3828.1,0.02612261]
[1760182097504,2.3745,3829.0,3828.1,0.02612261]
[1760182097703,1.92,3828.7,3828.1,0.02612261]
[1760182097908,2.61190879,3828.7,3828.1,0.02612261]
[1760182098203,2.61185258,3828.7,3828.1,0.02612261]
[1760182098429,2.61179237,3828.8,3828.1,0.02612261]
[1760182098637,1.92,3828.6,3828.1,0.02612261]
[1760182099344,0.4286,3828.5,3828.1,0.02612261]
[1760182099495,2.61211029,3828.4,3828.1,0.02812261]
[1760182099696,1.92,3828.3,3828.1,0.02812261]
[1760182099999,4.53213234,3828.3,3828.1,0.02812261]
[1760182100324,2.6772668,3828.3,3828.1,0.02812261]
[1760182100528,0.7572668,3828.3,3828.1,0.02812261]
[1760182100821,1.92,3828.4,3828.1,0.02812261]
[1760182101030,2.61200181,3828.5,3828.1,0.02812261]
[1760182101031,1.92,3828.5,3828.1,0.02812261]
[1760182101502,2.6120004,3828.5,3828.1,0.02812261]
[1760182102499,1.92,3828.3,3828.1,0.02812261]
[1760182102699,1.92,3828.3,3828.1,0.002]
[1760182102925,0.71439941,3828.3,3828.1,0.002]
[1760182103132,1.92,3828.4,3828.1,0.02812261]
[1760182103497,1.92,3828.4,3828.1,0.002]
[1760182103701,2.61206877,3828.4,3828.1,0.002]
[1760182103901,4.5319768,3828.6,3828.2,14.5]
[1760182104331,2.61200619,3828.5,3828.2,14.5]
[1760182104697,3.13439245,3828.5,3828.4,0.1304]
[1760182106834,3.13439245,3828.5,3828.1,0.002]
[1760182106835,4.53219372,3828.2,3828.1,0.002]
[1760182107300,4.96079372,3828.2,3828.1,0.002]
[1760182107858,4.53219372,3828.2,3828.1,0.002]
[1760182108137,0.52238626,3828.5,3828.1,0.002]
[1760182108448,1.92,3828.2,3828.1,0.002]
[1760182108751,2.61219372,3828.2,3828.1,0.002]
[1760182109120,0.4286,3829.1,3828.1,0.002]
[1760182109355,2.61180251,3828.8,3828.1,0.1319]
[1760182109533,1.92,3828.7,3828.1,0.1319]
[1760182109830,1.92,3828.7,3828.2,14.52612193]
[1760182110053,1.92,3828.7,3828.3,0.02612125]
[1760182110350,2.61186162,3828.7,3828.3,0.02612125]
[1760182110549,2.61186162,3828.7,3828.1,0.002]
[1760182110723,2.61192182,3828.6,3828.4,14.5]
[1760182111049,1.92,3828.6,3828.4,14.5]
[1760182111419,4.53186261,3828.7,3828.4,14.5]
[1760182111619,1.92,3828.7,3828.4,14.5]
[1760182112227,2.61185365,3828.7,3828.4,14.5]
[1760182114155,1.92,3828.6,3828.4,14.5]
[1760182114665,0.4286,3829.9,3828.5,2.76799389]
[1760182115030,1.92,3829.4,3828.5,2.76799389]
[1760182115238,2.61082972,3830.2,3828.5,2.76799389]
[1760182115239,0.9962768,3830.3,3828.7,0.6336]
[1760182115437,0.4286,3830.3,3828.8,0.15601784]
[1760182115635,2.61115547,3829.8,3828.9,2.61169424]
[1760182115864,1.92,3829.7,3828.9,2.61169424]
[1760182116231,2.61122979,3829.7,3828.8,0.1299]
[1760182116438,1.92,3829.6,3828.8,0.1299]
[1760182116633,1.92,3829.7,3828.9,2.6117031]
[1760182116839,1.92,3829.7,3829.5,0.1304]
[1760182117562,0.5819,3830.5,3829.5,0.1304]
[1760182117563,0.353,3830.5,3829.6,14.6299]
[1760182117759,2.61076155,3830.3,3829.9,0.1304]
[1760182117953,2.45527895,3830.2,3829.9,0.1304]
[1760182118466,2.45527895,3830.2,3830.0,14.5]
[1760182118664,2.61068438,3830.5,3830.1,0.1304]
[1760182118967,0.4286,3830.3,3830.1,0.1304]
[1760182119264,0.4286,3830.3,3827.6,2.61255007]
[1760182119265,2.61096605,3830.0,3829.9,0.1304]
[1760182119832,2.6109006,3830.1,3829.9,14.6304]
[1760182120263,2.61096605,3830.0,3829.9,0.1304]
[1760182120568,0.4286,3830.0,3829.9,0.1304]
[1760182120740,0.75712431,3830.1,3829.9,14.6304]
[1760182121365,3.36803609,3830.1,3829.9,14.6304]
[1760182121565,0.75712431,3830.1,3829.9,14.6304]
[1760182121764,1.92,3830.2,3829.9,14.6304]
[1760182121936,2.61083349,3830.2,3829.9,14.6304]
[1760182122131,0.4296,3830.4,3829.9,14.6304]
[1760182122132,2.61090252,3830.1,3829.9,14.6304]
[1760182122440,2.61083704,3830.2,3829.9,14.6304]
[1760182122645,1.92,3830.1,3829.9,14.6304]
[1760182123068,0.001,3830.4,3830.0,0.02610966]
[1760182123282,0.001,3830.4,3830.3,0.1304]
[1760182123640,1.921,3830.4,3830.3,0.1304]
[1760182123944,3.06495689,3830.4,3830.3,0.1304]
[1760182124136,0.90646349,3830.4,3829.9,14.5]
[1760182124337,1.92,3830.3,3829.9,14.5]
[1760182124850,0.4532,3830.4,3829.9,14.5]
[1760182125362,1.921,3830.4,3829.9,17.11098569]
[1760182125563,0.001,3830.4,3829.9,14.5]
[1760182125870,0.001,3830.4,3830.0,0.15600966]
[1760182126072,0.001,3830.4,3830.1,2.61088454]
[1760182126240,0.001,3830.4,3830.2,0.02610829]
[1760182126439,0.001,3830.4,3830.3,14.5]
[1760182130773,2.6116934,3830.4,3830.3,14.5]
[1760182130944,0.001,3830.4,3830.3,14.5]
[1760182134145,0.001,3830.4,3830.3,14.6304]
[1760182140183,0.001,3830.4,3830.3,17.37106155]
[1760182140386,0.001,3830.4,3830.3,14.6304]
[1760182147379,0.001,3830.4,3830.3,17.24066155]
[1760182147676,0.001,3830.4,3830.3,19.98981615]
[1760182150102,0.001,3830.4,3830.3,16.6155546]
[1760182150296,0.001,3830.4,3830.3,14.5]
[1760182150600,0.001,3830.4,3830.3,17.24066155]
[1760182151596,0.001,3830.4,3830.3,17.11076155]
[1760182151903,0.001,3830.4,3830.3,14.5]
[1760182156292,0.001,3830.4,3830.3,17.24066155]
[1760182156492,0.001,3830.4,3830.3,18.9647277]
[1760182159696,0.001,3830.4,3830.3,14.5]
[1760182160208,0.001,3830.4,3830.3,14.6304]
[1760182162206,2.6116934,3830.4,3830.3,14.6304]
[1760182162592,0.001,3830.4,3830.3,14.5]
[1760182162790,2.6116934,3830.4,3830.3,14.6304]
[1760182163012,3.37192274,3830.4,3830.3,14.5]
[1760182164812,2.91832274,3830.4,3830.3,14.5]
[1760182166186,2.91832274,3830.4,3830.2,0.1304]
[1760182166187,0.30762934,3830.4,3830.2,0.1304]
[1760182166408,0.001,3830.4,3830.2,0.1304]
[1760182166608,0.001,3830.4,3830.3,14.5]
[1760182167188,2.6116934,3830.4,3830.3,14.5]
[1760182167414,0.001,3830.4,3830.3,14.5]
[1760182169789,3.0652934,3830.4,3830.3,14.5]
[1760182170094,3.37192274,3830.4,3830.3,14.5]
[1760182172203,0.30762934,3830.4,3830.3,14.5]
[1760182172395,0.001,3830.4,3830.3,14.5]
[1760182175400,0.001,3830.4,3830.3,17.24066155]
[1760182182908,0.001,3830.4,3830.3,14.5]
[1760182183108,0.001,3830.4,3830.3,17.11076155]
[1760182183539,0.001,3830.4,3830.3,14.5]
[1760182184826,0.001,3830.4,3830.3,17.11076155]
[1760182185249,0.001,3830.4,3830.3,19.23886192]
[1760182188828,0.001,3830.4,3830.3,19.87246192]
[1760182189763,0.001,3830.4,3830.3,21.79246192]
[1760182192833,0.001,3830.4,3830.3,21.8971193]
[1760182200282,0.001,3830.4,3830.3,22.0275193]
[1760182201687,0.001,3830.4,3830.3,30.8135103]
[1760182201894,0.001,3830.4,3830.3,30.5175103]
[1760182202189,0.001,3830.4,3830.3,29.7830883]
[1760182202376,0.001,3830.4,3830.3,28.7911923]
[1760182202570,0.001,3830.4,3830.3,22.2892193]
[1760182203784,0.001,3830.4,3830.3,22.0275193]
[1760182204446,0.001,3830.4,3830.3,19.10896192]
[1760182204748,0.001,3830.4,3830.3,17.87426155]
[1760182205185,0.001,3830.4,3830.3,19.79426155]
[1760182208584,0.001,3830.4,3830.3,14.5]
[1760182213165,2.6116934,3830.4,3830.3,14.5]
[1760182213364,0.001,3830.4,3830.3,14.5]